[Event "USA Championship 2022"]
[Site "Saint Louis"]
[Date "2022.10.19"]
[Round "13.5"]
[White "Niemann, Hans Moke"]
[Black "Liang, Awonder"]
[Result "1/2-1/2"]
[ECO "C00"]
[WhiteElo "2699"]
[BlackElo "2608"]
[Annotator "TA"]
[PlyCount "131"]
[EventDate "2022.09.05"]
[EventType "tourn"]
[EventCountry "USA"]
[SourceTitle "playchess.com"]
[Source "ChessBase"]
[SourceQuality "1"]
[TimeControl "40/5400+30:1800+30"]

{[%evp 9,130,-1,-5,0,-7,0,0,0,0,-25,-41,-50,-26,-41,-17,-35,-32,-66,-62,-72,-33,-48,-37,-62,-33,-47,-53,-71,0,0,0,0,0,0,0,0,0,0,0,0,55,-53,0,0,0,13,35,17,61,12,16,0,72,64,120,22,31,26,30,30,27,0,0,0,0,-61,-77,-53,-26,-14,0,0,0,0,0,0,0,0,0,0,0,0,16,16,16,16,16,16,16,16,16,16,16,16,16,16,16,0,16,0,16,0,0,0,0,0,0,0,0,0,0,0,0,0,0,0,0,0,0,0,0,0,0]} 1. e4 {[%emt 0:02:32]} e6 {[%emt 0:00:02]} 2. Qe2 {[%emt 0:03:10]} c5 {[%emt 0:00:28]} 3. Nf3 {[%emt 0:00:31]} Nc6 {[%emt 0:00:02]} 4. g3 {[%emt 0:00:11]} e5 {[%emt 0:03:24]} 5. Bg2 {[%emt 0:09:44]} g6 {[%emt 0:01:05]} 6. O-O {[%emt 0:05:26] C00: French: Unusual White 2nd moves.} Bg7 {[%emt 0:00:02]} 7. c3 {[%emt 0:00:42][%cal Od2d4]} Nge7 {[%emt 0:00:36]} 8. Na3 {[%emt 0:02:56][%cal Od2d4] 8.a3 is the modern continuation.} O-O {[%emt 0:01:27]} 9. Nc2 {[%emt 0:04:41]} d5 {[%emt 0:02:11]} 10. d3 {[%emt 0:00:20]} h6 {[%emt 0:03:52] [#]} 11. a3 $146 {[%emt 0:04:19]} ({Predecessor:} 11. b4 cxb4 12. cxb4 a6 13. Bb2 d4 14. Nd2 Re8 15. a4 Be6 16. f4 exf4 17. gxf4 {0-1 (71) King,D (2530)-Nunn,J (2610) Bunratty 1998}) 11... d4 {[%emt 0:04:00]} 12. c4 {[%emt 0:05:19]} a5 {[%emt 0:00:13]} 13. Rb1 {[%emt 0:01:03]} a4 {[%emt 0:03:58]} 14. Nd2 {[%emt 0:01:11]} Be6 {[%emt 0:06:55]} 15. f4 {[%emt 0:01:42]} Qd7 {[%emt 0:02:01]} 16. Ne1 {[%emt 0:04:59]} Qc7 {[%emt 0:15:53]} 17. Ndf3 {[%emt 0:03:48]} f6 {[%emt 0:15:57]} 18. Nh4 {[%emt 0:06:33]} g5 {[%emt 0:00:19]} (18... exf4 $17 19. gxf4 g5) 19. Nf5 $11 {[%emt 0:03:13]} Nxf5 {[%emt 0:04:23]} 20. exf5 {[%emt 0:00:10]} Bxf5 {[%emt 0:00:35]} 21. fxg5 {[%emt 0:00:11]} fxg5 {[%emt 0:00:05]} 22. Bxg5 {[%emt 0:01:06]} Bg6 {[%emt 0:07:27]} (22... hxg5 23. Bd5+ Kh7 24. Rxf5 $1 Rxf5 25. Be4 $16) 23. Rxf8+ {[%emt 0:00:47]} Rxf8 {[%emt 0:00:03]} 24. Bd2 {[%emt 0:00:17]} Qe7 {[%emt 0:06:12]} (24... Qb6 $11) 25. Nf3 {[%emt 0:06:12] [#]} (25. Bd5+ $14 Bf7 26. Be4) 25... e4 {[%emt 0:00:13]} ({Better is} 25... Bxd3 $1 $15 26. Qxd3 e4) 26. Nh4 {[%emt 0:00:07]} Bh7 {[%emt 0:00:05]} 27. dxe4 {[%emt 0:02:06]} Qe6 {[%emt 0:04:55]} 28. Qh5 {[%emt 0:01:51]} Qf7 {[%emt 0:00:35]} (28... Qxc4 29. Bxh6 Qf7 30. Qg5 $16) (28... Bxe4 $2 29. Re1 Qe5 30. Qxe5 Nxe5 31. Bxe4 $18) 29. Qd5 {[%emt 0:04:14]} (29. Qxf7+ $1 $14 Rxf7 30. Nf5) 29... Ne5 {[%emt 0:02:24]} 30. Bf4 {[%emt 0:01:48]} Nxc4 {[%emt 0:05:25]} (30... Qxd5 $11 31. cxd5 Nd3) 31. Qxc5 $16 {[%emt 0:00:27] Strongly threatening Rf1.} b6 {[%emt 0:00:27] [#]} (31... d3 $14) 32. Qb5 {[%emt 0:01:26]} (32. Qc6 $1 $16) 32... Ne3 $11 {[%emt 0:00:08] Inhibits Rf1.} 33. Re1 {[%emt 0:02:01]} (33. Bf3 {with more complications.} Qe6 34. Re1 Bxe4 35. Bxe4 Qxe4 36. Qxa4 Rxf4 37. gxf4 Bf6 38. Qc4+) 33... Qb3 {[%emt 0:03:44]} 34. Qxb3+ {[%emt 0:00:58]} axb3 {[%emt 0:00:01]} 35. e5 {[%emt 0:00:28]} (35. Bxe3 dxe3 36. Nf3 (36. Rxe3 $2 Bd4 $19) (36. e5 $2 Bxe5 37. Bd5+ Kg7 $19) 36... Bxe4 37. Rxe3 Bc2 $17) 35... Nxg2 {[%emt 0:00:41]} 36. Kxg2 {[%emt 0:05:43]} Rc8 $1 {[%emt 0:00:01] White must now prevent ...Rc2+.} 37. Re2 {[%emt 0:00:43]} (37. Kf3 $1 $11) 37... d3 {[%emt 0:02:44]} 38. Rd2 {[%emt 0:00:19]} Rc2 {[%emt 0:00:09]} 39. Nf3 {[%emt 0:03:03]} Be4 {[%emt 0:00:04] The position is equal.} 40. Kf2 $1 {[%emt 0:00:31]} Bxf3 {[%emt 0:02:08]} 41. Kxf3 {[%emt 0:30:25]} ({Wrong is} 41. Rxc2 $2 bxc2 42. Kxf3 {[#]} Bxe5 $1 {[%mdl 512]} 43. Bxh6 Bxb2 $19) 41... Bxe5 {[%emt 0:30:43]} 42. Rxd3 {[%emt 0:01:12]} Bxf4 {[%emt 0:00:28]} 43. Kxf4 {[%emt 0:00:11]} Rxb2 {[%emt 0:00:04][%mdl 4096] Endgame KR-KR} 44. h4 {[%emt 0:00:15]} Rb1 {[%emt 0:00:00]} ({Don't play} 44... Rf2+ 45. Kg4 $14) 45. Kg4 {[%emt 0:00:00]} b2 {[%emt 0:00:00] ( -> ...Rf1)} 46. Rb3 {[%emt 0:00:00]} Ra1 {[%emt 0:00:00]} 47. Rxb2 {[%emt 0:00:00]} Rxa3 {[%emt 0:00:00]} 48. Rxb6 {[%emt 0:00:00]} h5+ {[%emt 0:00:00]} 49. Kf4 {[%emt 0:00:00] aiming for Rb5.} Kg7 {[%emt 0:00:00]} 50. Re6 {[%emt 0:00:00]} Ra4+ {[%emt 0:00:00]} 51. Re4 {[%emt 0:00:00]} Ra5 {[%emt 0:00:00]} 52. Re5 {[%emt 0:00:00]} Ra4+ {[%emt 0:00:00]} 53. Re4 {[%emt 0:00:00]} Ra5 {[%emt 0:00:00]} 54. Re5 {[%emt 0:00:00]} Ra4+ {[%emt 0:00:00]} 55. Kg5 {[%emt 0:00:00]} Rg4+ {[%emt 0:00:00]} 56. Kxh5 {[%emt 0:00:00]} Rxg3 {[%emt 0:00:00]} 57. Rg5+ {[%emt 0:00:00]} Rxg5+ {[%emt 0:00:00]} 58. hxg5 {[%emt 0:00:00] KP-K} Kh7 {[%emt 0:00:00]} 59. g6+ {[%emt 0:00:00]} Kg7 {[%emt 0:00:00]} 60. Kg5 {[%emt 0:00:00]} Kg8 {[%emt 0:00:00]} 61. Kf6 {[%emt 0:00:00] Intending g7 and mate.} Kf8 {[%emt 0:00:00]} 62. Kf5 {[%emt 0:00:00] White threatens Kf6 and mate.} Kg7 {[%emt 0:00:00]} 63. Kg5 {[%emt 0:00:00]} Kg8 {[%emt 0:00:00]} 64. Kh6 {[%emt 0:00:00]} Kh8 {[%emt 0:00:00]} 65. g7+ {[%emt 0:00:00]} Kg8 {[%emt 0:00:00]} 66. Kg6 {[%emt 0:00:00] Weighted Error Value: White=0.14 (very precise) /Black=0.13 (very precise)} 1/2-1/2

[Event "USA Championship 2022"]
[Site "Saint Louis"]
[Date "2022.10.19"]
[Round "13.6"]
[White "Moradiabadi, Elshan"]
[Black "Lenderman, Aleksandr"]
[Result "0-1"]
[ECO "C50"]
[WhiteElo "2534"]
[BlackElo "2535"]
[Annotator "TA"]
[PlyCount "142"]
[EventDate "2022.09.05"]
[EventType "tourn"]
[EventCountry "USA"]
[SourceTitle "playchess.com"]
[Source "ChessBase"]
[SourceQuality "1"]
[TimeControl "40/5400+30:1800+30"]

{[%evp 13,142,8,14,0,15,19,29,10,29,0,0,0,1,0,24,24,33,31,14,0,0,0,0,0,0,0,0,0,0,0,0,0,7,14,16,0,0,0,0,0,0,0,0,0,12,5,10,15,25,10,23,26,19,9,15,7,7,0,12,0,0,0,4,0,0,0,8,8,8,0,16,0,0,0,0,0,0,0,0,0,7,6,8,0,0,0,0,0,0,0,0,0,0,0,0,0,-1,-1,0,0,0,0,0,0,0,0,0,0,0,0,0,0,0,0,0,0,0,0,0,0,0,-154,-24,-27,-8,-181,-187,-184,-181,-181,-188]} 1. e4 {[%emt 0:00:03]} e5 {[%emt 0:00:04]} 2. Nf3 {[%emt 0:00:04]} Nf6 {[%emt 0:00:05]} 3. Nc3 {[%emt 0:00:04]} Nc6 {[%emt 0:00:22]} 4. Bb5 {[%emt 0:00:04]} Bd6 {[%emt 0:00:54]} 5. a3 {[%emt 0:00:48]} h6 {[%emt 0:03:05]} 6. d3 {[%emt 0:00:08]} a6 {[%emt 0:04:11]} 7. Bc4 {[%emt 0:00:05]} Bc5 {[%emt 0:03:19]} 8. Be3 {[%emt 0:05:12] C50: Hungarian Defence and Giuoco Pianissimo.} Bxe3 {[%emt 0:00:18]} 9. fxe3 {[%emt 0:00:02]} d6 {[%emt 0:00:08]} 10. O-O {[%emt 0:00:24] White has an edge.} O-O {[%emt 0:00:39]} 11. Qe1 {[%emt 0:03:47]} Be6 {[%emt 0:02:20]} 12. Nh4 {[%emt 0:08:30]} Kh7 {[%emt 0:11:49] [#]} 13. Rd1 $146 {[%emt 0:15:03]} ({Predecessor:} 13. Nf5 Ng8 14. Qg3 g6 15. Nh4 Bxc4 16. dxc4 Qg5 17. Qh3 Nge7 18. Rf3 h5 19. Raf1 {1-0 (42) Balabayeva,K (2308)-Kobo,O (2498) Chess.com INT 2021}) 13... g6 {[%emt 0:08:43]} 14. Rd2 {[%emt 0:06:05]} (14. Bd5 {is more complex.} Kg7 15. Qg3 Nh5 16. Qf2) 14... Nb8 {[%emt 0:07:31]} 15. Bxe6 {[%emt 0:16:10]} fxe6 {[%emt 0:00:12]} 16. d4 {[%emt 0:00:01]} Nbd7 {[%emt 0:02:56]} 17. Nf3 {[%emt 0:02:59]} Qe7 {[%emt 0:03:18]} 18. h3 {[%emt 0:00:41]} exd4 {[%emt 0:02:31]} 19. exd4 {[%emt 0:00:00]} e5 {[%emt 0:00:27]} 20. d5 {[%emt 0:06:37]} Rf7 {[%emt 0:02:39]} 21. g3 {[%emt 0:00:12]} Raf8 {[%emt 0:01:15]} 22. Rdf2 {[%emt 0:00:08]} Nc5 {[%emt 0:03:10]} 23. Qe3 {[%emt 0:01:33]} Qd7 {[%emt 0:04:53]} 24. Kg2 {[%emt 0:00:11][%cal Of3e5]} Na4 {[%emt 0:01:09]} (24... Nh5 $2 25. b4 $18 (25. Nxe5 Rxf2+ 26. Rxf2 Rxf2+ 27. Qxf2 Qe8 $16)) 25. Nd1 {[%emt 0:01:09]} Nc5 {[%emt 0:05:19]} 26. Nc3 {[%emt 0:00:19][%cal Of3e5]} Na4 {[%emt 0:02:46]} (26... Nh5 $2 27. b4 $18 (27. Nxe5 Rxf2+ 28. Rxf2 Rxf2+ 29. Qxf2 Qe8 $16)) 27. Nd1 {[%emt 0:00:04]} Nc5 {[%emt 0:15:13]} 28. Nd2 {[%emt 0:01:59]} a5 {[%emt 0:04:45]} 29. b4 {[%emt 0:02:41]} axb4 {[%emt 0:00:07]} 30. axb4 {[%emt 0:00:02]} Na4 {[%emt 0:02:24]} 31. c4 {[%emt 0:02:34]} c5 {[%emt 0:00:54]} 32. dxc6 {[%emt 0:00:34]} Qxc6 {[%emt 0:01:01]} 33. Qb3 {[%emt 0:02:19]} Nb6 {[%emt 0:00:57][%cal Ba4b6,Bb6d7,Bd7b8,Bb8c6,Bc6d8,Bd8e6,Be6g5][%mdl 32]} 34. Qd3 {[%emt 0:02:39]} Kg7 {[%emt 0:00:42]} 35. Ne3 {[%emt 0:04:26]} Nbd7 {[%emt 0:00:13]} 36. Nd1 {[%emt 0:02:29][%cal Be3d1,Bd1c3,Bc3b5][%mdl 32]} Qb6 {[%emt 0:01:10]} 37. Qc3 {[%emt 0:03:09]} Qd4 {[%emt 0:00:46]} 38. Qc2 {[%emt 0:05:23]} Nb8 {[%emt 0:03:10]} 39. Nc3 {[%emt 0:01:30]} Nc6 {[%emt 0:02:19]} 40. Nb5 {[%emt 0:03:39]} Qb6 {[%emt 0:01:56]} 41. Qd3 {[%emt 0:07:19]} ({Don't go for} 41. Nxd6 $2 Nxb4 42. c5 Qxd6 43. cxd6 Nxc2 $19) 41... Rd7 {[%emt 0:07:09]} 42. Qc3 {[%emt 0:04:43][%cal Ob5d6]} Nd8 {[%emt 0:00:00]} 43. Rf3 {[%emt 0:01:43]} Ne6 {[%emt 0:00:05]} 44. Qe3 {[%emt 0:02:13]} Qd8 {[%emt 0:01:09]} 45. R3f2 {[%emt 0:01:09]} Ng5 {[%emt 0:01:33]} 46. Qe2 {[%emt 0:00:32]} Qe7 {[%emt 0:01:48]} 47. h4 {[%emt 0:00:58]} Ne6 {[%emt 0:00:14]} 48. Nc3 {[%emt 0:04:25][%cal Of2f6] Rxf6! is the strong threat.} Nd4 {[%emt 0:00:59] Active counter play!} 49. Qd3 {[%emt 0:01:02][%cal Of2f6]} Qe6 {[%emt 0:06:11]} 50. Nf3 {[%emt 0:04:33]} Nc6 {[%emt 0:02:09]} 51. Nd5 {[%emt 0:01:57][%cal Of3g5] Hoping for Ng5!} Rdf7 {[%emt 0:00:34]} 52. b5 {[%emt 0:01:59]} Nb8 {[%emt 0:00:32]} 53. Nd2 {[%emt 0:00:27][%cal Oc4c5,Bf3d2,Bd2f1,Bf1e3,Be3d5][%mdl 32]} Nbd7 {[%emt 0:00:41]} 54. Nxf6 {[%emt 0:00:26]} Nxf6 {[%emt 0:00:30]} 55. Rf3 {[%emt 0:00:14]} Ra8 {[%emt 0:01:20]} 56. R1f2 {[%emt 0:00:29]} Rff8 {[%emt 0:00:36]} 57. Nf1 {[%emt 0:01:32]} h5 {[%emt 0:05:04]} 58. Ne3 {[%emt 0:00:22]} Nd7 {[%emt 0:00:49]} 59. Rxf8 {[%emt 0:00:50]} Rxf8 {[%emt 0:00:34]} 60. Rxf8 Kxf8 $11 {[%emt 0:00:13][%mdl 4096] Endgame KQN-KQN} 61. Nd5 {[%emt 0:04:31]} Nc5 {[%emt 0:00:23]} 62. Qf3+ {[%emt 0:00:08]} Kg7 {[%emt 0:00:14]} 63. Kf2 {[%emt 0:00:04]} Nd7 {[%emt 0:00:38]} 64. Qe3 {[%emt 0:00:59]} Qg4 {[%emt 0:01:10]} 65. Qf3 {[%emt 0:01:04]} Qh3 {[%emt 0:00:34]} 66. Nc7 {[%emt 0:01:38]} Nf6 {[%emt 0:00:40] Strongly threatening ...Qh2+.} 67. Ke3 $2 {[%emt 0:02:39] [#]} (67. Nd5 $11 Ng4+ 68. Ke1) 67... Qc8 {[%emt 0:01:45]} (67... Qh2 $1 $17 {Threatens to win with ...Qc2.} 68. Ne6+ Kf7 69. Ng5+ (69. Nd8+ $2 Ke7 $19) 69... Ke7) 68. b6 {[%emt 0:00:05]} Qd7 {[%emt 0:00:09] aiming for ...Qa4.} 69. Kd3 $2 {[%emt 0:01:35] [#]} (69. Ke2 $1 $11 {and White stays safe.}) 69... Qa4 $1 $19 {[%emt 0:01:00] Black is clearly better.} 70. Ne6+ {[%emt 0:01:04]} Kf7 {[%emt 0:00:05]} 71. Ng5+ {[%emt 0:00:19]} ({Not} 71. Nd8+ $2 Ke7 72. Nxb7 Qb3+ 73. Ke2 Qxb6 74. Nxd6 Qxd6 $19) 71... Ke7 {[%emt 0:00:07] Weighted Error Value: White=0.04 (flawless) /Black=0.04 (flawless)} 0-1

[Event "USA Championship 2022"]
[Site "Saint Louis"]
[Date "2022.10.19"]
[Round "13.7"]
[White "So, Wesley"]
[Black "Sevian, Samuel"]
[Result "1/2-1/2"]
[ECO "E04"]
[WhiteElo "2774"]
[BlackElo "2684"]
[Annotator "TA"]
[PlyCount "245"]
[EventDate "2022.09.05"]
[EventType "tourn"]
[EventCountry "USA"]
[SourceTitle "playchess.com"]
[Source "ChessBase"]
[SourceQuality "1"]
[TimeControl "40/5400+30:1800+30"]

{[%evp 83,245,89,83,76,75,77,99,12,79,79,79,73,75,75,76,0,0,0,75,75,75,73,70,67,70,0,75,0,70,70,70,70,138,65,65,65,65,61,61,59,59,59,58,0,58,58,58,58,58,58,58,0,58,0,58,58,58,58,58,58,48,8,54,8,8,8,8,8,8,8,8,8,8,8,54,0,0,0,0,0,0,0,0,0,0,0,0,0,0,0,0,0,0,0,8,0,0,0,0,0,0,0,0,0,0,0,0,0,0,0,0,0,0,0,0,0,0,0,0,0,0,0,0,0,0,0,0,0,0,0,0,0,0,0,0,0,0,0,0,0,0,0,0,0,0,0,0,0,0,0,0,0,0,0,0,0,0,0,0,0,0,0,0,0]} 1. d4 {[%emt 0:00:01]} Nf6 {[%emt 0:01:21]} 2. c4 {[%emt 0:00:23]} e6 {[%emt 0:00:06]} 3. g3 {[%emt 0:00:03]} d5 {[%emt 0:00:09]} 4. Bg2 {[%emt 0:00:06]} dxc4 {[%emt 0:00:06]} 5. Nf3 {[%emt 0:00:03]} c5 {[%emt 0:00:07]} 6. O-O {[%emt 0:00:19]} Nc6 {[%emt 0:00:07]} 7. dxc5 {[%emt 0:00:26]} Qxd1 {[%emt 0:00:08]} 8. Rxd1 {[%emt 0:00:03]} Bxc5 {[%emt 0:00:11]} 9. Nbd2 {[%emt 0:00:02]} c3 {[%emt 0:00:17]} 10. bxc3 {[%emt 0:00:05]} O-O {[%emt 0:00:03]} 11. Nb3 {[%emt 0:00:04]} Be7 {[%emt 0:00:08]} 12. Nfd4 {[%emt 0:00:13]} Bd7 {[%emt 0:00:16]} 13. Nxc6 {[%emt 0:00:00]} Bxc6 {[%emt 0:00:10]} 14. Bxc6 {[%emt 0:00:00]} bxc6 {[%emt 0:00:08]} 15. f3 {[%emt 0:02:51]} Rfd8 16. Bd2 {[%emt 0:01:17]} Nd5 {[%emt 0:37:11]} 17. c4 {[%emt 0:00:30]} Nb6 {[%emt 0:00:30]} 18. c5 {[%emt 0:03:21]} Nc4 19. Bf4 Rxd1+ {[%emt 0:10:15]} 20. Rxd1 {[%emt 0:01:00]} e5 {[%emt 0:25:30]} 21. Rc1 {[%emt 0:06:42]} exf4 {[%emt 0:00:00]} 22. Rxc4 {[%emt 0:00:02]} fxg3 {[%emt 0:00:00]} 23. hxg3 {[%emt 0:00:04]} Rc8 {[%emt 0:00:00]} 24. g4 {[%emt 0:19:06]} Kf8 {[%emt 0:00:00]} 25. Rb4 {[%emt 0:06:13]} a5 {[%emt 0:00:00]} 26. Ra4 {[%emt 0:00:12]} Bd8 {[%emt 0:00:00]} 27. Kf2 {[%emt 0:00:07]} g6 {[%emt 0:00:00]} 28. f4 {[%emt 0:00:29]} Ra8 {[%emt 0:07:50]} 29. Nd4 {[%emt 0:02:34]} Be7 {[%emt 0:01:29]} 30. Rc4 {[%emt 0:01:51]} Rc8 {[%emt 0:00:50]} 31. Nb3 {[%emt 0:05:25]} Ra8 {[%emt 0:00:18]} 32. Ra4 {[%emt 0:00:02]} Bd8 {[%emt 0:01:00]} 33. Kf3 {[%emt 0:03:05]} Ke8 {[%emt 0:00:20]} 34. e4 {[%emt 0:03:11]} Bc7 {[%emt 0:00:50]} 35. e5 {[%emt 0:04:24]} g5 {[%emt 0:13:36]} 36. fxg5 {[%emt 0:03:46]} Kd7 {[%emt 0:00:27]} 37. Kf4 {[%emt 0:03:20]} Ke6 {[%emt 0:01:36]} 38. Ke4 {[%emt 0:00:13]} Bxe5 {[%emt 0:00:55]} 39. Rxa5 {[%emt 0:00:49]} Rg8 {[%emt 0:02:33]} 40. Ra6 {[%emt 0:00:17]} Rxg5 {[%emt 0:00:06]} 41. Rxc6+ {[%emt 0:30:04]} Kd7 {[%emt 0:30:06]} 42. Rh6 {[%emt 0:00:19]} Bg7 {[%emt 0:00:00]} 43. Rxh7 {[%emt 0:00:00]} Rxg4+ {[%emt 0:00:00]} 44. Kd5 {[%emt 0:00:00]} Kc7 {[%emt 0:13:28]} 45. a4 {[%emt 0:01:15]} (45. Rh3 $16) 45... Rg5+ {[%emt 0:00:00]} (45... Rg3 $1 $11) 46. Kc4 $16 {[%emt 0:00:28]} Rg4+ {[%emt 0:00:00]} 47. Kb5 {[%emt 0:00:34]} Bc3 {[%emt 0:00:00]} 48. Rxf7+ {[%emt 0:00:05]} Kb8 {[%emt 0:00:00]} 49. Rf8+ {[%emt 0:01:33]} (49. Na5 $16 {And now Nc6+ would win.} Rb4+ 50. Kc6 Rxa4 51. Nb7 Ra6+ 52. Kb5) 49... Kc7 $11 {[%emt 0:00:00]} 50. Rf7+ {[%emt 0:00:19]} ({White should play} 50. c6 $11) 50... Kb8 $1 $16 {[%emt 0:00:00]} 51. Na5 {[%emt 0:02:52]} Rb4+ {[%emt 0:00:00]} 52. Kc6 {[%emt 0:01:04]} Rxa4 {[%emt 0:00:00]} 53. Rf8+ {[%emt 0:01:05]} Ka7 {[%emt 0:00:00]} 54. Rf7+ {[%emt 0:01:47]} Kb8 $1 {[%emt 0:00:00]} 55. Rf8+ {[%emt 0:00:16]} Ka7 {[%emt 0:00:00]} 56. Nb7 {[%emt 0:00:04]} Ra6+ {[%emt 0:00:00]} 57. Kc7 $1 {[%emt 0:00:21]} Bd4 {[%emt 0:00:00] [#]} (57... Rh6 $14) 58. Nd6 {[%emt 0:03:55]} (58. Rf3 $1 $16) 58... Ra5 $1 $14 {[%emt 0:00:00]} 59. c6 {[%emt 0:00:02]} Be5 {[%emt 0:00:00]} 60. Re8 {[%emt 0:05:03]} Rd5 {[%emt 0:00:00]} 61. Re6 {[%emt 0:00:12]} Rc5 $1 {[%emt 0:00:00]} 62. Re7 $1 {[%emt 0:06:04]} Rd5 {[%emt 0:00:00]} 63. Re6 {[%emt 0:01:23]} Rc5 $1 {[%emt 0:00:00]} 64. Rg6 {[%emt 0:00:30]} Rc2 {[%emt 0:00:00]} 65. Rh6 {[%emt 0:00:30]} Rc1 {[%emt 0:00:00]} 66. Rh7 {[%emt 0:00:30]} Rd1 {[%emt 0:00:00]} 67. Rh6 {[%emt 0:00:30]} Rc1 $1 {[%emt 0:00:00]} 68. Rh7 {[%emt 0:00:30]} Rd1 {[%emt 0:00:00]} 69. Kc8+ $1 {[%emt 0:00:30]} Kb6 {[%emt 0:00:28]} 70. Nc4+ {[%emt 0:00:30]} Kxc6 {[%emt 0:00:30]} 71. Nxe5+ {[%emt 0:00:30]} Kb5 {[%emt 0:00:00]} 72. Rb7+ {[%emt 0:18:14]} Kc5 {[%emt 0:00:00]} (72... Ka6 $11) 73. Rc7+ {[%emt 0:00:03]} (73. Nd7+ $1 $14 {feels stronger.} Kd6 74. Rb4) 73... Kb5 $11 {[%emt 0:00:00]} 74. Kb7 {[%emt 0:01:49]} Rh1 {[%emt 0:00:00]} 75. Nf3 {[%emt 0:01:26]} Rh6 {[%emt 0:00:00]} 76. Nd4+ {[%emt 0:00:16]} Kb4 $1 {[%emt 0:00:00]} 77. Nc6+ {[%emt 0:00:01]} Kc5 {[%emt 0:00:00]} 78. Rg7 {[%emt 0:00:30]} Kd6 {[%emt 0:00:00]} (78... Rh5 $11) 79. Rg1 {[%emt 0:00:30]} (79. Kb6 $14) 79... Rh2 $11 {[%emt 0:00:20]} 80. Rd1+ {[%emt 0:00:30]} Kc5 {[%emt 0:00:30]} 81. Ne5 {[%emt 0:00:30]} Rh6 {[%emt 0:01:19]} 82. Kc7 Rh7+ {[%emt 0:00:30]} 83. Nd7+ Kc4 {[%emt 0:00:30]} 84. Kd6 {[%emt 0:01:29]} Rh6+ {[%emt 0:00:30]} 85. Ke5 Rh5+ {[%emt 0:00:30]} 86. Ke6 {[%emt 0:01:00]} Rh6+ {[%emt 0:00:30]} 87. Nf6 Rh3 {[%emt 0:00:30]} 88. Ke5 {[%emt 0:06:46]} Rd3 {[%emt 0:00:00]} 89. Rh1 {[%emt 0:00:00]} Rd8 {[%emt 0:00:00]} 90. Rc1+ {[%emt 0:00:00]} Kb5 {[%emt 0:00:00]} 91. Nd5 {[%emt 0:00:00]} Rh8 {[%emt 0:00:00]} 92. Nf4 {[%emt 0:00:00]} Re8+ {[%emt 0:00:00]} 93. Kd4 {[%emt 0:00:00]} Rh8 {[%emt 0:00:00]} 94. Rc5+ {[%emt 0:00:00]} Ka6 {[%emt 0:00:00]} 95. Nd5 {[%emt 0:00:00]} Rh4+ {[%emt 0:00:00]} 96. Ke5 {[%emt 0:00:00]} Rh5+ {[%emt 0:00:00]} 97. Kd6 {[%emt 0:00:00]} Rh6+ {[%emt 0:00:03]} 98. Kd7 {[%emt 0:00:00]} Rh7+ {[%emt 0:00:10]} 99. Ne7 {[%emt 0:00:00]} Kb6 {[%emt 0:00:06]} 100. Rg5 {[%emt 0:00:00]} Rf7 {[%emt 0:00:12]} 101. Rh5 {[%emt 0:00:00]} Rg7 {[%emt 0:00:57]} 102. Kd6 {[%emt 0:00:00]} Rg1 {[%emt 0:00:07]} 103. Rc5 {[%emt 0:00:00]} Rh1 {[%emt 0:00:24]} 104. Nd5+ {[%emt 0:00:00]} Ka6 {[%emt 0:00:36]} 105. Nc7+ {[%emt 0:00:48]} Ka7 {[%emt 0:00:03]} 106. Ra5+ {[%emt 0:01:01]} Kb6 {[%emt 0:00:03]} 107. Rb5+ {[%emt 0:00:01]} Ka7 {[%emt 0:00:03]} 108. Nd5 {[%emt 0:00:02]} Ka6 {[%emt 0:01:12]} 109. Rb3 {[%emt 0:03:15]} Rh6+ {[%emt 0:01:22]} 110. Kc5 {[%emt 0:00:16]} Rh5 {[%emt 0:00:20]} 111. Re3 {[%emt 0:01:35]} Kb7 {[%emt 0:01:24]} 112. Re7+ {[%emt 0:00:04]} Ka6 {[%emt 0:00:15]} 113. Rf7 {[%emt 0:00:55]} Re5 {[%emt 0:00:23]} 114. Rf6+ {[%emt 0:00:31]} Kb7 {[%emt 0:01:13]} 115. Rb6+ {[%emt 0:00:02]} Ka7 {[%emt 0:00:09]} 116. Rd6 {[%emt 0:00:58]} Kb7 {[%emt 0:00:14]} 117. Kb5 {[%emt 0:00:31]} Rh5 {[%emt 0:00:21]} 118. Kc5 {[%emt 0:00:27]} Re5 {[%emt 0:00:04]} 119. Rd7+ {[%emt 0:00:08]} Ka6 {[%emt 0:00:47]} 120. Rh7 {[%emt 0:00:08]} Rg5 {[%emt 0:00:03]} 121. Rh6+ {[%emt 0:01:07]} Kb7 {[%emt 0:00:04]} 122. Kd6 {[%emt 0:00:38]} Rg7 {[%emt 0:00:05]} 123. Kc5 {[%emt 0:00:30]} 1/2-1/2